Cogmind - Beta 15 @@@ ROGUE MODE // 2025.06.11 @ 06:21:19 Player: CL-1C0 Result: Self-destructed Performance ------------- Evolutions (2) 1000 Regions Visited (7) 1400 Robots Destroyed (0) 0 Value Destroyed (10) 10 Prototype IDs (23) 460 Alien Tech Used (0) 0 Bonus (864) 864 TOTAL SCORE: 3734 Bonus ------- Pacifist 564 Aligned with FarCom 300 Cogmind --------- Core Integrity 535/550 Matter 218/300 Energy 99/100 System Corruption 0% Temperature Cool (0) Movement Core (50) Location -8/Materials Parts ------- > --- POWER (1) -------- (None) > --- PROPULSION (4) --- Light Treads > --- UTILITY (4) ------ (None) > --- WEAPON (2) ------- (None) > --- INVENTORY (5) ---- Skeleton Box Rocket Launcher Peak State ------------ > --- POWER ------------ (None) > --- PROPULSION ------- Light Treads Light Treads > --- UTILITY ---------- (None) > --- WEAPON ----------- Rocket Launcher > --- INVENTORY -------- Skeleton Box [Rating: 4] Favorites ----------- Power None Propulsion Light Treads Treads Light Treads Utility Seismic Detector Device Seismic Detector Weapon Rocket Launcher Launcher Rocket Launcher Build | -11 -10 -10 -9 -9 -9 -8 -8 ------- Run | Yrd Mat Min Mat Min Exi Min Mat Slots Evolved 4 | . . . 2 . . . 2 Power . | . . . . . . . . Propulsion 2 | . . . . . . . 2 Utility 2 | . . . 2 . . . . Weapon . | . . . . . . . . Parts Attached 4 | 2 . . 1 . . . 1 Power . | . . . . . . . . Engine . | . . . . . . . . Core . | . . . . . . . . Reactor . | . . . . . . . . Propulsion 2 | 2 . . . . . . . Treads 2 | 2 . . . . . . . Leg . | . . . . . . . . Wheel . | . . . . . . . . Hover . | . . . . . . . . Flight . | . . . . . . . . Utility 1 | . . . 1 . . . . Device 1 | . . . 1 . . . . Storage . | . . . . . . . . Processor . | . . . . . . . . Hackware . | . . . . . . . . Protection . | . . . . . . . . Artifact . | . . . . . . . . Weapon 1 | . . . . . . . 1 Energy Gun . | . . . . . . . . Energy Cannon . | . . . . . . . . Ballistic Gun . | . . . . . . . . Ballistic Cannon . | . . . . . . . . Launcher 1 | . . . . . . . 1 Special Weapon . | . . . . . . . . Impact Weapon . | . . . . . . . . Slashing Weapon . | . . . . . . . . Piercing Weapon . | . . . . . . . . Special Melee Weapon . | . . . . . . . . Unidentified Prototypes . | . . . . . . . . Parts Lost 2 | . . . 1 . . . 1 Power . | . . . . . . . . Propulsion 1 | . . . . . . . 1 Utility 1 | . . . 1 . . . . Weapon . | . . . . . . . . Highest Loss Streak 1 | . . . 1 . . . 1 To Critical Strikes . | . . . . . . . . Average Backups 1 | 4 . . . 1 1 2 1 Power . | 1 . . . . . . . Propulsion . | 2 . . . . . . . Utility . | . . . . . . . . Weapon . | 1 . . . 1 1 1 . Tool/Special . | . . . . . . . . Unused Backups 1 | . . . . . . . 1 Power . | . . . . . . . . Propulsion . | . . . . . . . . Utility . | . . . . . . . . Weapon . | . . . . . . . . Tool/Special 1 | . . . . . . . 1 Average Slot Usage (%) 22 | . 28 28 27 22 22 22 15 Treads 21 | . 28 28 22 22 22 22 12 Peak Build Rating 4 | 2 2 2 3 2 2 2 4 Average Rating 2 | 1 2 2 2 2 2 2 1 On Entrance 2 | 6 2 2 2 2 2 2 2 Naked Turns . | . . . . . . . . Heaviest Build 1 | . . . 1 . . . . Greatest Support 3 | 3 3 3 3 3 3 3 3 Greatest Overweight (x) . | . . . . . . . . Average Overweight (x) . | . . . . . . . . Largest Inventory Capacity 5 | 5 5 5 5 5 5 5 5 Average Capacity 5 | 5 5 5 5 5 5 5 5 Most Carried 4 | 4 . . 1 1 2 2 2 Average Carried 1 | 2 . . . 1 1 2 1 Final Capacity 5 | 5 5 5 5 5 5 5 5 Final Carried 2 | . . . 1 1 2 2 2 Class Distribution -------------------- 100% | Mutant Dominant Class ---------------- Mutant | -10/Materials Mutant | -10/Mines Mutant | -9/Materials Mutant | -9/Mines Mutant | -9/Exiles Mutant | -8/Mines Mutant | -8/Materials Resources | -11 -10 -10 -9 -9 -9 -8 -8 ----------- Run | Yrd Mat Min Mat Min Exi Min Mat Matter Collected 218 | 186 . . . . . 32 . Remotely . | . . . . . . . . Salvage Created . | . . . . . . . . Parts . | . . . . . . . . Haulers Intercepted . | . . . . . . . . Recyclers Shooed . | . . . . . . . . Parts Field Recycled . | . . . . . . . . Retrieved Matter . | . . . . . . . . Parts Self-Destructed . | . . . . . . . . Prevented . | . . . . . . . . Kills | -11 -10 -10 -9 -9 -9 -8 -8 ------- Run | Yrd Mat Min Mat Min Exi Min Mat Combat Hostiles Destroyed . | . . . . . . . . Classes Destroyed . | . . . . . . . . Best Kill Streak . | . . . . . . . . Combat Bots Only . | . . . . . . . . Max Kills in Single Turn . | . . . . . . . . Gunslinging . | . . . . . . . . Exploded . | . . . . . . . . Melee . | . . . . . . . . Uniques/NPCs Destroyed . | . . . . . . . . Combat | -11 -10 -10 -9 -9 -9 -8 -8 -------- Run | Yrd Mat Min Mat Min Exi Min Mat Hostile Shots Fired 70 | . 16 . 22 . . 28 4 Missed 33 | . 10 . 7 . . 13 3 Hits 37 | . 6 . 15 . . 15 1 Projectile 37 | . 6 . 15 . . 15 1 Critical Strikes 1 | . 1 . . . . . . Damage Taken 359 | . 42 . 146 . . 131 40 Core 96 | . . . 34 . . 47 15 Absorbed by Shields . | . . . . . . . . Core Remaining (%) 93 | 100 . 100 . . . 79 . Volleys Fired 7 | . . . . . . . 7 Largest 1 | . . . . . . . 1 Hottest 33 | . . . . . . . 33 Shots Fired 7 | . . . . . . . 7 Gun . | . . . . . . . . Cannon . | . . . . . . . . Launcher 7 | . . . . . . . 7 Special . | . . . . . . . . Kinetic . | . . . . . . . . Thermal . | . . . . . . . . Explosive 7 | . . . . . . . 7 Electromagnetic . | . . . . . . . . Robot Hit Streak . | . . . . . . . . Robot Miss Streak . | . . . . . . . . Penetration Max . | . . . . . . . . Secondary Targets . | . . . . . . . . Shots Hit Robots . | . . . . . . . . Core Hits . | . . . . . . . . Critical Kills . | . . . . . . . . Critical Parts Destroyed . | . . . . . . . . Critical Strikes . | . . . . . . . . Melee Attacks . | . . . . . . . . Impact . | . . . . . . . . Slashing . | . . . . . . . . Piercing . | . . . . . . . . Sneak Attacks . | . . . . . . . . Combat Hostiles . | . . . . . . . . Follow-up Attacks . | . . . . . . . . Damage Inflicted 22 | . 3 . . . . 19 . Guns . | . . . . . . . . Cannons . | . . . . . . . . Explosions . | . . . . . . . . Melee . | . . . . . . . . Ramming 22 | . 3 . . . . 19 . Kinetic . | . . . . . . . . Thermal . | . . . . . . . . Explosive . | . . . . . . . . Electromagnetic . | . . . . . . . . Impact . | . . . . . . . . Slashing . | . . . . . . . . Piercing . | . . . . . . . . Highest Corruption . | . . . . . . . . Average Corruption . | . . . . . . . . Corruption Purged . | . . . . . . . . Corruption Blocked . | . . . . . . . . Overload Shots . | . . . . . . . . Overflow Damage 3 | . . . . . . . 3 Projectiles . | . . . . . . . . Explosions 3 | . . . . . . . 3 Melee . | . . . . . . . . Knockbacks . | . . . . . . . . Impact . | . . . . . . . . Kinetic . | . . . . . . . . Secondary . | . . . . . . . . Self-Inflicted Damage 37 | . . . . . . 9 28 Shots 1 | . . . . . . . 1 Rammed 8 | . 3 . . . . 5 . Targets Rammed 8 | . 3 . . . . 5 . Kicked . | . . . . . . . . Crushed . | . . . . . . . . Highest Temperature . | . . . . . . . . Average Temperature . | . . . . . . . . Received Heat Transfer 18 | . . . 18 . . . . Siege Activations . | . . . . . . . . Martial Activations . | . . . . . . . . Shielding Activations . | . . . . . . . . Robots Disrupted . | . . . . . . . . Combat Hostiles . | . . . . . . . . Robots Corrupted . | . . . . . . . . Combat Hostiles . | . . . . . . . . Parts Fried . | . . . . . . . . Impact Corruptions . | . . . . . . . . Robots Melted . | . . . . . . . . Combat Hostiles . | . . . . . . . . Parts Melted . | . . . . . . . . Heat Transferred . | . . . . . . . . Parts Sabotaged . | . . . . . . . . Parts Stolen . | . . . . . . . . Parts Stripped . | . . . . . . . . Power Chain Reactions . | . . . . . . . . Alert | -11 -10 -10 -9 -9 -9 -8 -8 ------- Run | Yrd Mat Min Mat Min Exi Min Mat Maximum Alert Level . | . . . . . . . . Low Security (%) 100 | 100 100 100 100 100 . 100 100 Level 1 . | . . . . . . . . Level 2 . | . . . . . . . . Level 3 . | . . . . . . . . Level 4 . | . . . . . . . . Level 5 . | . . . . . . . . High Security . | . . . . . . . . Max Security . | . . . . . . . . Peak Influence 17 | . . . . . . . 17 Initial . | . . . . . . . . Average 1 | . . . . . . . 5 Influence Increases 27 | . . . . . . . 27 Disable Machine 15 | . . . . . . . 15 Destroy Structure 12 | . . . . . . . 12 Influence Decreases 27 | . . . . . . . 27 Time Decay 17 | . . . . . . . 17 Lost Part 10 | . . . . . . . 10 Squads Dispatched 2 | . . . 1 . . . 1 Investigation . | . . . . . . . . Extermination . | . . . . . . . . Reinforcement 2 | . . . 1 . . . 1 Assault . | . . . . . . . . Garrison . | . . . . . . . . Intercept . | . . . . . . . . Searches Triggered . | . . . . . . . . Construction Impeded . | . . . . . . . . Haulers Reinforced . | . . . . . . . . Active Scanning Responses . | . . . . . . . . Cargo Convoy Interrupts . | . . . . . . . . Stealth | -11 -10 -10 -9 -9 -9 -8 -8 --------- Run | Yrd Mat Min Mat Min Exi Min Mat Distress Signals 1 | . 1 . . . . . . Communications Jammed . | . . . . . . . . Distress Signals . | . . . . . . . . Times Spotted 16 | . 4 . 5 . . 5 2 Peak Tracking Total 5 | . 4 . 5 . . 5 1 Tactical Retreats . | . . . . . . . . Traps | -11 -10 -10 -9 -9 -9 -8 -8 ------- Run | Yrd Mat Min Mat Min Exi Min Mat Traps Triggered . | . . . . . . . . Indirectly . | . . . . . . . . Trap Hack Attempts . | . . . . . . . . Triggered . | . . . . . . . . Disarmed . | . . . . . . . . Reprogrammed . | . . . . . . . . Reused . | . . . . . . . . Traps Extracted . | . . . . . . . . Installed . | . . . . . . . . Triggered . | . . . . . . . . Machines | -11 -10 -10 -9 -9 -9 -8 -8 ---------- Run | Yrd Mat Min Mat Min Exi Min Mat Machines Disabled 1 | . . . . . . . 1 Max in Single Turn 1 | . . . . . . . 1 Machines Repaired . | . . . . . . . . Machines Dismantled . | . . . . . . . . Machines Sabotaged . | . . . . . . . . Overloaded Fab Kills . | . . . . . . . . Hacking | -11 -10 -10 -9 -9 -9 -8 -8 --------- Run | Yrd Mat Min Mat Min Exi Min Mat Machines Accessed 1 | . . . . . 1 . . Terminals . | . . . . . . . . Fabricators . | . . . . . . . . Repair Stations . | . . . . . . . . Recycling Units . | . . . . . . . . Scanalyzers . | . . . . . . . . Garrison Access . | . . . . . . . . Total Hacks 1 | . . . . . 1 . . Successful 1 | . . . . . 1 . . Failed . | . . . . . . . . Catastrophic . | . . . . . . . . Database Lockouts . | . . . . . . . . Manual 1 | . . . . . 1 . . Terminals . | . . . . . . . . Fabricators . | . . . . . . . . Repair Stations . | . . . . . . . . Recycling Units . | . . . . . . . . Scanalyzers . | . . . . . . . . Garrison Access . | . . . . . . . . Terminal Hacks 1 | . . . . . 1 . . Proto ID Catalog 1 | . . . . . 1 . . Fabricator Hacks . | . . . . . . . . Repair Station Hacks . | . . . . . . . . Recycling Unit Hacks . | . . . . . . . . Scanalyzer . | . . . . . . . . Garrison Access Hacks . | . . . . . . . . Unauthorized Hacks . | . . . . . . . . Terminals . | . . . . . . . . Fabricators . | . . . . . . . . Repair Stations . | . . . . . . . . Recycling Units . | . . . . . . . . Scanalyzers . | . . . . . . . . Garrison Access . | . . . . . . . . Data Cores Recovered . | . . . . . . . . Used . | . . . . . . . . Hacking Detections . | . . . . . . . . Full Trace Events . | . . . . . . . . Feedback Events . | . . . . . . . . Feedback Blocked . | . . . . . . . . Robot Schematics Acquired . | . . . . . . . . Robots Built . | . . . . . . . . Authchips . | . . . . . . . . Time . | . . . . . . . . Total Robot Build Rating . | . . . . . . . . Part Schematics Acquired . | . . . . . . . . Parts Built . | . . . . . . . . Authchips . | . . . . . . . . Time . | . . . . . . . . Total Part Build Rating . | . . . . . . . . Parts Repaired . | . . . . . . . . Time . | . . . . . . . . Parts Recycled . | . . . . . . . . Recycled Matter . | . . . . . . . . Retrieved Matter . | . . . . . . . . Retrieved Components . | . . . . . . . . Parts Scanalyzed . | . . . . . . . . Part Schematics Acquired . | . . . . . . . . Parts Damaged . | . . . . . . . . Bothacking | -11 -10 -10 -9 -9 -9 -8 -8 ------------ Run | Yrd Mat Min Mat Min Exi Min Mat Used RIF Installer . | . . . . . . . . Robots Hacked . | . . . . . . . . Non-combat . | . . . . . . . . Combat . | . . . . . . . . Robot Hacks Applied . | . . . . . . . . Relay Couplers Released . | . . . . . . . . Fabnet Peak Effective % . | . . . . . . . . Robots Rewired . | . . . . . . . . Allies Hacked . | . . . . . . . . Hacks Repelled . | . . . . . . . . Allies | -11 -10 -10 -9 -9 -9 -8 -8 -------- Run | Yrd Mat Min Mat Min Exi Min Mat Total Allies 3 | . . . . 3 . . . Largest Group 3 | . . . . 3 . . . Highest-Rated Group 40 | . . . . 40 . . . Highest-Rated Ally 16 | . . . . 16 . . . Total Orders . | . . . . . . . . Ally Attacks . | . . . . . . . . Total Damage . | . . . . . . . . Kills . | . . . . . . . . Allies Corrupted . | . . . . . . . . Allies Melted . | . . . . . . . . Intel | -11 -10 -10 -9 -9 -9 -8 -8 ------- Run | Yrd Mat Min Mat Min Exi Min Mat Active Infowar (turns) 29 | . . . 29 . . . . Seismic 29 | . . . 29 . . . . Robot Analysis Total . | . . . . . . . . Derelict Logs Recovered 1 | . . . . 1 . . . Drone Launches . | . . . . . . . . Drone Recoveries . | . . . . . . . . Exploration | -11 -10 -10 -9 -9 -9 -8 -8 ------------- Run | Yrd Mat Min Mat Min Exi Min Mat Turns Passed 377 | 4 40 10 48 19 107 85 64 Spaces Moved 683 | 1 70 20 90 37 210 159 96 Core 683 | 1 70 20 90 37 210 159 96 Treads . | . . . . . . . . Legs . | . . . . . . . . Wheels . | . . . . . . . . Hover . | . . . . . . . . Flight . | . . . . . . . . Fastest Speed 50 | 50 50 50 50 50 50 50 50 Average Speed 50 | 50 50 50 50 50 50 50 50 Slowest Speed 50 | 50 50 50 50 50 50 50 50 Overloaded Moves . | . . . . . . . . Propulsion Burnouts . | . . . . . . . . Robots Hopped . | . . . . . . . . Potential Cave-ins 9 | . . . . . . . 9 Cave-ins Triggered . | . . . . . . . . Exploration Rate (%) 20 | 2 17 15 18 12 42 44 12 Regions Visited 7 Branch Regions 4 Pre-discovered Areas 1 | . . . . 1 . . . Known Exits Taken . | . . . . . . . . Unknown Exits Taken 7 | 1 1 1 1 1 1 1 . Scrap Searched 1 | . . . . . . 1 . Spaces Dug 71 | . . . . . . . 71 Terrain Destroyed 80 | . . . . . . . 80 Melee . | . . . . . . . . Projectile . | . . . . . . . . AOE 80 | . . . . . . . 80 Terrain Rammed . | . . . . . . . . Walls Destroyed . | . . . . . . . . Machines Disabled . | . . . . . . . . Actions | -11 -10 -10 -9 -9 -9 -8 -8 --------- Run | Yrd Mat Min Mat Min Exi Min Mat Total 702 | 5 72 19 91 36 211 163 105 Wait 1 | . . . . . 1 . . Move 676 | . 69 19 89 36 209 158 96 Hop . | . . . . . . . . Pick Up 2 | . . . 1 . 1 . . Fast Attach 1 | . . . 1 . . . . Attach 3 | 2 . . . . . . 1 Detach 1 | . . . . . . . 1 Swap . | . . . . . . . . Drop 3 | 3 . . . . . . . Fire 7 | . . . . . . . 7 Melee . | . . . . . . . . Ram 5 | . . . . . . 5 . Kick . | . . . . . . . . Crush 3 | . 3 . . . . . . Escape Stasis . | . . . . . . . . Rewire . | . . . . . . . . Trap . | . . . . . . . . Miscellaneous . | . . . . . . . . Route ------- -11/Scrapyard -10/Materials -10/Mines -9/Materials -9/Mines -9/Exiles -8/Mines -8/Materials History --------- Turn | Location | Event 1 | -11/Scrapyard | Released all parts (6) 5 | -11/Scrapyard | Discovered new exit (range 0) 5 | -11/Scrapyard | Entered Materials 38 | -10/Materials | Discovered new exit (range 14) 45 | -10/Materials | Entered Mines 46 | -10/Mines | Met a Derelict bent on vengeance 51 | -10/Mines | Discovered new exit (range 7) 55 | -10/Mines | Entered Materials 55 | -9/Materials | Evolved 2 slots: Utility x2 91 | -9/Materials | Discovered new exit (range 9) 103 | -9/Materials | Entered Mines 109 | -9/Mines | Learned location of Zion (-7) 111 | -9/Mines | Assisted by bots powering up and referring to "LRC-V3" 120 | -9/Mines | Deemed a non-threat by the Exiles lab entrance 120 | -9/Mines | Discovered new exit (range 5) 122 | -9/Mines | Entered Exiles 130 | -9/Exiles | Discovered new exit (range 15) 136 | -9/Exiles | Met 8R-AWN 144 | -9/Exiles | Met EX-HEX 157 | -9/Exiles | Met EX-BIN 163 | -9/Exiles | Aligned with FarCom system 163 | -9/Exiles | Given EX-Vault access code 175 | -9/Exiles | Opened EX-Vault 178 | -9/Exiles | Found Skeleton Box 190 | -9/Exiles | Warned to stay clear of 0b10 Research branches 229 | -9/Exiles | Left Exiles lab with Skeleton Box 229 | -9/Exiles | Entered Mines 308 | -8/Mines | Discovered new exit (range 11) 312 | -8/Mines | Build established: Mutant 314 | -8/Mines | Entered Materials 314 | -8/Materials | Evolved 2 slots: Propulsion x2 378 | -8/Materials | Self-destructed Last Messages --------------- 00272_ Acquired 32 matter. 00279_ S-10 Pest destroyed. 00300_ Slammed into U-05 Engineer. 00301_ Slammed into T-07 Excavator. 00304_ Slammed into R-06 Scavenger. 00307_ Slammed into K-01 Serf. 00308_ EXIT=FOUND 00311_ Slammed into T-07 Excavator. PARAMETERS=PROPULSION+2 LOCATION=UNKNOWN GOAL=ESCAPE 00314_ Receiving FarCom transmissions... 00339_ Scanalyzer disabled. 00339_ Lgt. Treads destroyed. 00339_ Destroyed Lgt. Treads. 00346_ The unstable cave ceiling collapses. 00364_ K-01 Serf collects debris. 00366_ O-16 Technician: "IFF HANDSHAKE FAILED. SECURING TERMINAL." 00368_ ALERT: Hostiles spotted, dispatching reinforcements to Terminal M007. Map ----- +----------------------------------------------------+ | ??????????????????????????????????# " #???? | | ??????????????????????????????????#! #???? | | ??????????????????????????????????# # ##??? | | ??????????????????????????????????#### #??? | | ?????????????????????????????????????# # ##??? | | ?????????????????????????????????????# #???? | | ?????????????????????????????????????## #???? | | ??????????????????????????????????????# #???? | | ?????????????????????????????????????## #???? | | ??????????????????g?????????????????## #???? | | ?????????????????????Y?????????????## ##???? | | ???????????????????????????????????# #????? | | ????????????????????????????? ?????# ##????? | | ????????????????????????????#/?###### # ##?????? | | ???????????????????????????? ?+ #####?????? | | ??????????????????????####?? ## / + #?????? | | ?????????????????????? [?# ## ## #?????? | | ??????????????????????" ## ## ! ## #?????? | | ??????????????????????"" ## ## ## #?????? | | ????????????????????#"" # ##"####### #?????? | | ????????????????????#""" + #?????? | | ????????????????????# "" # #?????? | | ????????????????????#""" # ########## +?????? | | ????????????????????#""" ## ########### #?????? | | ????????????????????#""" ## Y# # ####??? | | ????????????????????# " @## # + #??? | | ????????????????????# + # """"" # #??? | | ????????????????????#! * ## # """"" ###/###??? | | ????????????????????######### # """"" #?? ???? | | ????????????????????????????# # #?? #?? | | ????????????????????????????# + #??? !#?? | | ????????????????????????????### ! !#??? #?? | | ??????????????????????????????###########???? #?? | | ????????????????????????????????????????????? #?? | | ??????????????????????????????????????????????##?? | | | | | | | | | | | | | | | | | | | | | | | | | | | | | | | +----------------------------------------------------+ Best States ------------- Heat Dissipation 31 Energy Generation 5 Energy Capacity 100 Matter Stores 300 Matter Capacity 300 Sight Range 16 Terrain Scan Density 10 Evasion (%) 50 Recoil Reduction 1 Item Schematics ----------------- None Robot Schematics ------------------ None Fabricated ------------ Nothing Repaired ---------- Nothing Alien Tech Used ----------------- None Achievements -------------- None Challenges ------------ None Game ------ Seed TargetingLightningStick Manual? 0 Play Time 00:07:08 Cumulative 532.9 hours Start 2025.06.11 @ 06:12:32 End 2025.06.11 @ 06:21:19 Sessions 1 Manual Loads 0 Difficulty Rogue Special Mode None Game No. 627 Rogue 627 Adventurer 0 Explorer 0 Win Type - Total 19 Types 13/0/5/1/0/0/0/0/0/0 Lore% 83 Gallery% 82 Achievement% 82 Wizard Run 0 Options --------- Layout 0 ASCII 0 Keyboard 0 Movement Numpad Keybinds 0 Fullscreen 1 Font 18/SmallcapsGlow Map View 76x50 Zoom Use 0% Tactical HUD 1 Map Filters NONE Filters NONE Steam 1 RUN: a54dfc89-4f26-4061-b6e9-d78e7109cbbe